Cogmind - Beta 9.2 @@@ ROGUE MODE // 2019.11.22 @ 12:03:14 Player: Nalzok Result: Destroyed by L-31 Rogue with Katana Performance ------------- Evolutions (1) 500 Regions Visited (6) 1200 Robots Destroyed (39) 195 Value Destroyed (477) 477 Prototype IDs (7) 140 Alien Tech Used (0) 0 Bonus (300) 300 TOTAL SCORE: 2812 Bonus ------- Aligned with FarCom 300 Cogmind --------- Core Integrity 0/400 Matter 294/300 Energy 200/200 System Corruption 3% Temperature Cool (0) Movement Walking (170) Ox2 Location -8/Mines Parts ------- > --- POWER (1) -------- Cold Fusion Reactor > --- PROPULSION (2) --- Potential Leg > --- UTILITY (4) ------ Cooling System High-capacity Storage Unit High-capacity Storage Unit > --- WEAPON (2) ------- (None) > --- INVENTORY (20) --- Ion Engine Light Ion Engine Improved Ion Engine Light Treads Improved Aluminum Leg Carbon-fiber Leg High-capacity Storage Unit High-capacity Storage Unit High-capacity Storage Unit Improved Sensor Array EX Chip 1 EX Chip 2 EX Chip 2 EX Chip 2 Particle Cannon Heavy Assault Rifle Heavy Assault Rifle Improved Light Cannon Improved Light Cannon Improved Light Cannon Peak State ------------ > --- POWER ------------ Improved Ion Engine > --- PROPULSION ------- Potential Leg Potential Leg > --- UTILITY ---------- High-capacity Storage Unit High-capacity Storage Unit Visual Processing Unit Improved Sensor Array > --- WEAPON ----------- AWS/Thermal > --- INVENTORY -------- Ion Engine Ion Engine Light Treads Cooling System High-capacity Storage Unit High-capacity Storage Unit High-capacity Storage Unit Improved Sensor Array Light EM Pulse Cannon Light EM Pulse Cannon Particle Cannon Particle Cannon Heavy Assault Rifle Heavy Assault Rifle Improved Light Cannon Improved Light Cannon Improved Light Cannon Rocket Launcher Rocket Launcher Field Lobotomy Kit [Rating: 48] Favorites ----------- Power Ion Engine Engine Ion Engine Reactor Cold Fusion Reactor Propulsion Aluminum Leg Treads Light Treads Leg Aluminum Leg Utility High-capacity Storage Unit Device Improved Sensor Array Storage High-capacity Storage Unit Processor Visual Processing Unit Weapon Light EM Pulse Cannon Energy Gun Small Laser Energy Cannon Light EM Pulse Cannon Ballistic Gun Autogun Launcher Rocket Launcher Special Weapon Field Lobotomy Kit Build | -11 -10 -10 -9 -9 -9 -8 ------- Run | Scr Mat Min Mat Min Exi Min Slots Evolved 2 | . . . 2 . . . Power . | . . . . . . . Propulsion . | . . . . . . . Utility 2 | . . . 2 . . . Weapon . | . . . . . . . Parts Attached 33 | . 7 . 10 . 14 2 Power 2 | . . . 1 . 1 . Engine 1 | . . . 1 . . . Core . | . . . . . . . Reactor 1 | . . . . . 1 . Propulsion 5 | . . . 2 . 3 . Treads 3 | . . . 2 . 1 . Leg 2 | . . . . . 2 . Wheel . | . . . . . . . Hover . | . . . . . . . Flight . | . . . . . . . Utility 7 | . 2 . 3 . 1 1 Device 4 | . 1 . 1 . 1 1 Storage 2 | . 1 . 1 . . . Processor 1 | . . . 1 . . . Hackware . | . . . . . . . Protection . | . . . . . . . Artifact . | . . . . . . . Weapon 19 | . 5 . 4 . 9 1 Energy Gun 2 | . . . . . 2 . Energy Cannon 9 | . 3 . 2 . 4 . Ballistic Gun 1 | . . . 1 . . . Ballistic Cannon . | . . . . . . . Launcher 5 | . 2 . 1 . 1 1 Special Weapon 2 | . . . . . 2 . Impact Weapon . | . . . . . . . Slashing Weapon . | . . . . . . . Piercing Weapon . | . . . . . . . Special Melee Weapon . | . . . . . . . Unidentified Prototypes 5 | . . . . . 5 . Parts Lost 9 | . . 2 . . 4 3 Power . | . . . . . . . Propulsion . | . . . . . . . Utility 2 | . . . . . 1 1 Weapon 7 | . . 2 . . 3 2 Highest Loss Streak 3 | . . 2 . . 3 2 Average Slot Usage (%) 96 | . 98 100 98 100 93 94 Engine 9 | . 14 14 11 11 8 . Reactor 2 | . . . . . 2 11 Treads 3 | . . . 6 22 7 . Leg 20 | . 28 28 15 . 13 22 Device 13 | . 12 14 11 11 12 20 Storage 18 | . 14 14 20 22 22 22 Processor 3 | . . . 10 11 8 . Energy Gun 1 | . 1 . . . 2 . Energy Cannon 11 | . 12 14 15 11 8 12 Ballistic Gun 3 | . 1 . 5 11 5 . Launcher 6 | . 11 14 . . . 6 Naked Turns . | . . . . . . . Heaviest Build 87 | 12 46 46 79 79 85 87 Greatest Support 60 | 20 20 20 40 40 60 60 Greatest Overweight (x) 7 | . 2 2 7 1 2 1 Average Overweight (x) 1 | . . 1 2 1 1 1 Largest Inventory Capacity 20 | 6 12 12 20 20 20 20 Average Capacity 15 | 6 8 12 19 20 20 20 Most Carried 20 | 5 12 12 19 19 20 20 Average Carried 14 | 4 6 12 17 19 18 19 Final Capacity 20 | 6 12 12 20 20 20 20 Final Carried 20 | 2 12 12 19 19 18 20 Class Distribution -------------------- 58% | Hauler-Mutant 41% | Mutant Dominant Class ---------------- Mutant | -10/Materials Mutant | -10/Mines Hauler-Mutant | -9/Materials Hauler-Mutant | -9/Mines Hauler-Mutant | -9/Exiles Hauler-Mutant | -8/Mines Resources | -11 -10 -10 -9 -9 -9 -8 ----------- Run | Scr Mat Min Mat Min Exi Min Matter Collected 747 | 156 143 21 176 15 18 218 Remotely . | . . . . . . . Salvage Created 466 | . 191 21 103 . 35 116 Parts 68 | . 27 3 15 . . 23 Haulers Intercepted . | . . . . . . . Recyclers Shooed . | . . . . . . . Parts Field Recycled . | . . . . . . . Retrieved Matter . | . . . . . . . Parts Self-Destructed . | . . . . . . . Prevented . | . . . . . . . Kills | -11 -10 -10 -9 -9 -9 -8 ------- Run | Scr Mat Min Mat Min Exi Min Combat Hostiles Destroyed 31 | . 11 3 5 . 4 8 Cannons 8 | . 2 1 2 . 1 2 AOE 23 | . 9 2 3 . 3 6 Classes Destroyed 9 | . 5 . 1 . 1 2 Worker 4 | . 2 . 2 . . . Builder 1 | . 1 . . . . . Tunneler 2 | . . . . . . 2 Mechanic 1 | . 1 . . . . . Swarmer 23 | . 9 3 4 . . 7 Grunt 2 | . 2 . . . . . Sentry 1 | . . . 1 . . . Hunter 1 | . . . . . . 1 Assembled 4 | . . . . . 4 . Best Kill Streak 6 | . 5 3 6 . 4 5 Combat Bots Only 4 | . 3 3 4 . 4 4 Max Kills in Single Turn 4 | . 4 3 4 . 3 3 Gunslinging . | . . . . . . . Exploded 3 | . 3 2 2 . 3 2 Melee . | . . . . . . . Uniques/NPCs Destroyed 1 | . . . . . 1 . EX-BIN (-9/Exiles) EX-HEX (-9/Exiles) Combat | -11 -10 -10 -9 -9 -9 -8 -------- Run | Scr Mat Min Mat Min Exi Min Damage Taken 2332 | . 201 327 135 . 1106 563 Core 500 | . 29 69 41 . 249 112 Absorbed by Shields . | . . . . . . . Core Remaining (%) 80 | 100 . 60 . . . . Volleys Fired 38 | . 9 2 4 . 13 10 Largest 2 | . 2 2 2 . 2 2 Hottest 124 | . 101 101 89 . 124 124 Shots Fired 72 | . 18 4 8 . 22 20 Gun 2 | . . . 2 . . . Cannon 39 | . 9 2 4 . 13 11 Launcher 26 | . 9 2 2 . 4 9 Special 5 | . . . . . 5 . Kinetic 2 | . . . 2 . . . Thermal 11 | . 5 2 . . 3 1 Explosive 26 | . 9 2 2 . 4 9 Electromagnetic 28 | . 4 . 4 . 10 10 Robot Hit Streak 5 | . 2 . 5 . 5 4 Robot Miss Streak 4 | . 4 3 4 . 2 3 Penetration Max . | . . . . . . . Secondary Targets . | . . . . . . . Shots Hit Robots 34 | . 6 . 5 . 13 10 Core Hits 57 | . 18 3 7 . 12 17 Critical Hits . | . . . . . . . Critical Kills . | . . . . . . . Critical Parts Destroyed . | . . . . . . . Melee Attacks . | . . . . . . . Impact . | . . . . . . . Slashing . | . . . . . . . Piercing . | . . . . . . . Sneak Attacks . | . . . . . . . Combat Hostiles . | . . . . . . . Follow-up Attacks . | . . . . . . . Damage Inflicted 2502 | . 928 151 450 . 278 695 Guns 14 | . . . 14 . . . Cannons 470 | . 146 21 58 . 99 146 Explosions 1987 | . 782 130 378 . 179 518 Melee . | . . . . . . . Ramming 31 | . . . . . . 31 Kinetic 14 | . . . 14 . . . Thermal 122 | . 61 38 . . 2 21 Explosive 1970 | . 782 113 378 . 179 518 Electromagnetic 365 | . 85 . 58 . 97 125 Impact . | . . . . . . . Slashing . | . . . . . . . Piercing . | . . . . . . . Highest Corruption 3 | . . . . . . 3 Average Corruption 3 | . . . . . . 3 Corruption Purged . | . . . . . . . Overload Shots . | . . . . . . . Overflow Damage 92 | . 17 1 8 . 9 57 Projectiles . | . . . . . . . Explosions 92 | . 17 1 8 . 9 57 Melee . | . . . . . . . Knockbacks . | . . . . . . . Impact . | . . . . . . . Kinetic . | . . . . . . . Secondary . | . . . . . . . Self-Inflicted Damage 231 | . 37 . 25 . 33 136 Shots 7 | . 1 . 1 . 1 4 Rammed 4 | . . . . . . 4 Targets Rammed 7 | . . . . . . 7 Kicked 3 | . . . . . . 3 Crushed . | . . . . . . . Highest Temperature 117 | . 117 78 50 . 117 39 Average Temperature 39 | . 45 39 23 . 42 22 Received Heat Transfer 166 | . 18 . 18 . 40 90 Siege Activations . | . . . . . . . Robots Corrupted . | . . . . . . . Combat Hostiles . | . . . . . . . Parts Fried . | . . . . . . . Impact Corruptions . | . . . . . . . Robots Melted . | . . . . . . . Combat Hostiles . | . . . . . . . Parts Melted 1 | . . 1 . . . . Heat Transferred 244 | . 111 87 . . 9 37 Parts Sabotaged . | . . . . . . . Parts Stolen . | . . . . . . . Parts Stripped . | . . . . . . . Power Chain Reactions . | . . . . . . . Missiles Intercepted . | . . . . . . . Alert | -11 -10 -10 -9 -9 -9 -8 ------- Run | Scr Mat Min Mat Min Exi Min Peak Influence 270 | . 185 98 187 72 . 270 Average Influence 108 | . 112 19 99 72 . 164 Maximum Alert Level 1 | . . . . . . 1 Low Security (%) 89 | 100 100 100 100 100 . 52 Level 1 10 | . . . . . . 47 Level 2 . | . . . . . . . Level 3 . | . . . . . . . Level 4 . | . . . . . . . Level 5 . | . . . . . . . High Security . | . . . . . . . Max Security . | . . . . . . . Squads Dispatched 1 | . . . . . . 1 Investigation . | . . . . . . . Extermination . | . . . . . . . Reinforcement 1 | . . . . . . 1 Assault . | . . . . . . . Garrison . | . . . . . . . Intercept . | . . . . . . . Construction Impeded 1 | . . . . . . 1 Haulers Reinforced . | . . . . . . . Stealth | -11 -10 -10 -9 -9 -9 -8 --------- Run | Scr Mat Min Mat Min Exi Min Distress Signals . | . . . . . . . Communications Jammed . | . . . . . . . Distress Signals . | . . . . . . . Times Spotted 61 | . 14 20 5 . 11 11 Peak Tracking Total 15 | . 3 15 4 . 11 4 Tactical Retreats 1 | . . . . . 1 . Traps | -11 -10 -10 -9 -9 -9 -8 ------- Run | Scr Mat Min Mat Min Exi Min Traps Triggered . | . . . . . . . Indirectly . | . . . . . . . Trap Hack Attempts . | . . . . . . . Triggered . | . . . . . . . Disarmed . | . . . . . . . Reprogrammed . | . . . . . . . Reused . | . . . . . . . Traps Extracted . | . . . . . . . Installed . | . . . . . . . Triggered . | . . . . . . . Machines | -11 -10 -10 -9 -9 -9 -8 ---------- Run | Scr Mat Min Mat Min Exi Min Machines Disabled 9 | . 2 1 . . 6 . Max in Single Turn 1 | . 1 1 . . 1 . Machines Sabotaged . | . . . . . . . Garrisons Compromised . | . . . . . . . Overloaded Fab Kills . | . . . . . . . Fab Network Shutdowns . | . . . . . . . Hacking | -11 -10 -10 -9 -9 -9 -8 --------- Run | Scr Mat Min Mat Min Exi Min Machines Accessed 3 | . 1 . 2 . . . Terminals 3 | . 1 . 2 . . . Fabricators . | . . . . . . . Repair Stations . | . . . . . . . Recycling Units . | . . . . . . . Scanalyzers . | . . . . . . . Garrison Access . | . . . . . . . Total Hacks 6 | . 2 . 4 . . . Successful 4 | . 1 . 3 . . . Failed 2 | . 1 . 1 . . . Catastrophic . | . . . . . . . Database Lockouts . | . . . . . . . Manual 1 | . . . . . 1 . Terminals 6 | . 2 . 4 . . . Fabricators . | . . . . . . . Repair Stations . | . . . . . . . Recycling Units . | . . . . . . . Scanalyzers . | . . . . . . . Garrison Access . | . . . . . . . Terminal Hacks 4 | . 1 . 3 . . . Prototype ID Bank 1 | . . . 1 . . . Level Access Points 1 | . . . 1 . . . Branch Access Points 1 | . . . 1 . . . Locate Traps 1 | . 1 . . . . . Fabricator Hacks . | . . . . . . . Repair Station Hacks . | . . . . . . . Recycling Unit Hacks . | . . . . . . . Scanalyzer . | . . . . . . . Garrison Access Hacks . | . . . . . . . Unauthorized Hacks . | . . . . . . . Terminals . | . . . . . . . Fabricators . | . . . . . . . Repair Stations . | . . . . . . . Recycling Units . | . . . . . . . Scanalyzers . | . . . . . . . Garrison Access . | . . . . . . . Data Cores Recovered . | . . . . . . . Used . | . . . . . . . Hacking Detections 3 | . 1 . 2 . . . Full Trace Events . | . . . . . . . Feedback Events . | . . . . . . . Feedback Blocked . | . . . . . . . Robot Schematics Acquired . | . . . . . . . Robots Built . | . . . . . . . Matter . | . . . . . . . Time . | . . . . . . . Total Robot Build Rating . | . . . . . . . Part Schematics Acquired . | . . . . . . . Parts Built . | . . . . . . . Matter . | . . . . . . . Time . | . . . . . . . Total Part Build Rating . | . . . . . . . Parts Repaired . | . . . . . . . Time . | . . . . . . . Parts Recycled . | . . . . . . . Recycled Matter . | . . . . . . . Retrieved Matter . | . . . . . . . Retrieved Components . | . . . . . . . Parts Scanalyzed . | . . . . . . . Part Schematics Acquired . | . . . . . . . Parts Damaged . | . . . . . . . Bothacking | -11 -10 -10 -9 -9 -9 -8 ------------ Run | Scr Mat Min Mat Min Exi Min Used RIF Installer . | . . . . . . . Robots Hacked . | . . . . . . . Non-combat . | . . . . . . . Combat . | . . . . . . . Robot Hacks Applied . | . . . . . . . Relay Couplers Released . | . . . . . . . Robots Rewired . | . . . . . . . Allies Hacked . | . . . . . . . Hacks Repelled . | . . . . . . . Allies | -11 -10 -10 -9 -9 -9 -8 -------- Run | Scr Mat Min Mat Min Exi Min Total Allies 2 | . . . . . 2 . Largest Group 1 | . . . . . 1 . Highest-Rated Group 36 | . . . . . 36 . Highest-Rated Ally 36 | . . . . . 36 . Total Orders . | . . . . . . . Ally Attacks 18 | . . . . . 18 . Total Damage 862 | . . . . . 862 . Kills 4 | . . . . . 4 . Allies Corrupted . | . . . . . . . Allies Melted . | . . . . . . . Field Lobotomies 2 | . . . . . 2 . Intel | -11 -10 -10 -9 -9 -9 -8 ------- Run | Scr Mat Min Mat Min Exi Min Robot Analysis Total . | . . . . . . . Derelict Logs Recovered . | . . . . . . . Drone Launches . | . . . . . . . Drone Recoveries . | . . . . . . . Exploration | -11 -10 -10 -9 -9 -9 -8 ------------- Run | Scr Mat Min Mat Min Exi Min Turns Passed 2514 | 2 833 213 306 139 585 436 Spaces Moved 1492 | 1 557 116 138 78 366 236 Core . | . . . . . . . Treads 243 | . . . 49 78 116 . Legs 1249 | 1 557 116 89 . 250 236 Wheels . | . . . . . . . Hover . | . . . . . . . Flight . | . . . . . . . Fastest Speed 85 | 120 120 150 180 180 85 130 Average Speed 149 | 120 140 179 198 180 140 130 Slowest Speed 330 | 120 180 180 330 180 180 130 Overloaded Moves 47 | . . . . . 47 . Propulsion Burnouts . | . . . . . . . Robots Hopped . | . . . . . . . Cave-ins Triggered . | . . . . . . . Exploration Rate (%) 37 | 2 66 43 16 20 66 51 Regions Visited 6 Branch Regions 4 Pre-discovered Areas . | . . . . . . . Known Exits Taken 1 | . . . 1 . . . Unknown Exits Taken 5 | 1 1 1 . 1 1 . Scrap Searched 4 | . . 1 . 1 . 2 Spaces Dug 12 | . . . . . . 12 Terrain Destroyed 244 | . 72 33 12 . 20 107 Melee . | . . . . . . . Projectile . | . . . . . . . AOE 244 | . 72 33 12 . 20 107 Actions | -11 -10 -10 -9 -9 -9 -8 --------- Run | Scr Mat Min Mat Min Exi Min Total 1703 | 4 591 117 160 77 412 342 Wait 88 | . . . . . 4 84 Move 1486 | . 556 115 137 77 365 236 Hop . | . . . . . . . Pick Up 26 | . 12 . 7 . 4 3 Fast Attach 15 | . 3 . 4 . 8 . Attach 9 | . . . 2 . 6 1 Detach 4 | . . . . . 4 . Swap 9 | . 4 . 4 . . 1 Drop 21 | 4 7 . 2 . 8 . Fire 38 | . 9 2 4 . 13 10 Melee . | . . . . . . . Ram . | . . . . . . . Kick 7 | . . . . . . 7 Crush . | . . . . . . . Escape Stasis . | . . . . . . . Rewire . | . . . . . . . Trap . | . . . . . . . Miscellaneous . | . . . . . . . Route ------- -11/Scrapyard -10/Materials (discovered 2 exits: *Mat / [*Min]) -10/Mines (discovered 2 exits: *Mat x2) -9/Materials (discovered 5 exits: Mat x3 / *Min x2) -9/Mines -9/Exiles (discovered 2 exits: [*Min x2]) -8/Mines History --------- Turn | Location | Event 3 | -11/Scrapyard | Discovered new exit (range 0) 3 | -11/Scrapyard | Entered Materials 281 | -10/Materials | Discovered new exit (range 4) 320 | -10/Materials | Build established: Mutant 419 | -10/Materials | Discovered new exit (range 7) 836 | -10/Materials | Entered Mines 968 | -10/Mines | Discovered new exit (range 15) 1023 | -10/Mines | Assembled infested the area 1028 | -10/Mines | Assisted by a Guerilla fighting off Assembled 1029 | -10/Mines | Discovered new exit (range 9) 1049 | -10/Mines | Entered Materials 1049 | -9/Materials | Evolved 2 slots: Utility x2 1186 | -9/Materials | Identified exit to Mines 1314 | -9/Materials | Identified exit to Materials 1349 | -9/Materials | Build established: Hauler-Mutant 1355 | -9/Materials | Entered Mines 1485 | -9/Mines | Deemed a non-threat by the Exiles lab entrance 1487 | -9/Mines | Discovered new exit (range 5) 1494 | -9/Mines | Entered Exiles 1523 | -9/Exiles | Discovered new exit (range 17) 1539 | -9/Exiles | Met 8R-AWN 1570 | -9/Exiles | Met EX-HEX 1617 | -9/Exiles | Met EX-BIN 1638 | -9/Exiles | Aligned with FarCom system 1640 | -9/Exiles | Given EX-Vault access code 1687 | -9/Exiles | Opened EX-Vault 1704 | -9/Exiles | Found Prototype Leg 1704 | -9/Exiles | Identified Potential Leg 1713 | -9/Exiles | Found Potential Leg 1721 | -9/Exiles | Found Prototype Special Weapon 1721 | -9/Exiles | Identified Field Lobotomy Kit 1757 | -9/Exiles | Warned to stay clear of 0b10 Research branches 1787 | -9/Exiles | Found Prototype Energy Gun 1787 | -9/Exiles | Identified AWS/Thermal 1916 | -9/Exiles | Met EX-DEC 1919 | -9/Exiles | Attacked by the Exiles 1926 | -9/Exiles | Assimilated DAS Turret with FLK Orb 1927 | -9/Exiles | Allies destroyed EX-BIN 1930 | -9/Exiles | Assimilated as-62757 with FLK Orb 1939 | -9/Exiles | Found Prototype Device 1939 | -9/Exiles | Identified System Purifier 1967 | -9/Exiles | Core integrity fell below 50% 1987 | -9/Exiles | Lost 3 parts (3w) 2067 | -9/Exiles | Discovered new exit (range 10) 2079 | -9/Exiles | Left Exiles lab with Potential Leg 2079 | -9/Exiles | Entered Mines 2511 | -8/Mines | Core integrity fell below 20% 2515 | -8/Mines | Destroyed by L-31 Rogue with Katana Last Messages --------------- 02342_ Searching scrap... 02342_ Found 46 Matter. 02342_ Found Imp. Aluminum Leg. 02342_ Found Great Maul. 02342_ Found Lgt. Assault Rifle. 02343_ Acquired 46 matter. 02345_ Acquired Imp. Aluminum Leg. 02407_ Rocket Launcher destroyed. 02407_ Destroyed Rocket Launcher. 02415_ The unstable cave ceiling collapses. 02504_ Lgt. EM Pulse Cannon destroyed. 02506_ Kicked L-31 Rogue out of the way. 02507_ Slammed into L-31 Rogue. 02507_ Imp. Sensor Array destroyed. 02507_ System corrupted by crushing effect (+3). 02508_ Slammed into L-31 Rogue. 02511_ Kicked L-31 Rogue out of the way. 02512_ Potential Leg severed. 02512_ Kicked L-31 Rogue out of the way. 02514_ Slammed into L-31 Rogue. Map ----- +----------------------------------------------------+ | | | | | | | | | ????????????????????????????????? | | ????????????????????????????????? | | ????????????????????????????????? | | ????????????????????????????????? | | ????????????????????????????????? | | ????????????????????????????????? | | ?????????????????????????####???? | | ?????????????????????????# ##??? | | ????????????????????????## #??? | | ???????????????????????## #??? | | ???????????????????????# ##?? | | ##?????????????????????# #?? | | #?????????????????????## #?? | | #??????????????????????# #?? | | #??????????????????????# ##? | | #??????????????????????## #? | | ### #????????#####?????## #? | | #???????## ##????# #? | | #??###### #????# #?? | | ######??#/[ ! ! #???## ##?? | | ????????# #### #???# #?? | | ?????#### #?## #??##l@ #?? | | ????## #?# #### = ##?? | | ????# #?# ## g #?? | | ???# ###?# #?? | | ???# #???# g ##?? | | ???# #???## ####### ##??? | | ??# #???## #?????#####???? | | ?# #???## #???####??????? | | # #????# ##### ##?????? | | #?????# ##????? | | ##?????# ##???? | | ##??????##### # #???? | | #????????????# # #???? | | #?????????????# #???? | | ##???????????## #????? | | ######??????# ##???? | | ##?????# #???? | | #?????# ##??? | | #?????## #??? | | #??????### #??? | | # #?????######## ##??? | | # #????# ## # #???? | | ## ########### #???? | | ### ##?## ## #???? | | ### #?## * ### #???? | +----------------------------------------------------+ Best States ------------- Heat Dissipation 50 Energy Generation 17 Energy Capacity 265 Matter Stores 300 Matter Capacity 300 Sight Range 18 Robot Scan Range 13 Terrain Scan Density 10 Evasion (%) 43 Recoil Reduction 2 Item Schematics ----------------- None Robot Schematics ------------------ None Fabricated ------------ Nothing Alien Tech Used ----------------- None Achievements -------------- None Challenges ------------ None Game ------ Seed MicroSwordFemtoactuators Manual? 0 Play Time 00:18:28 Cumulative 181.2 hours Start 2019.11.21 @ 22:37:14 End 2019.11.22 @ 12:03:14 Sessions 5 Manual Loads 0 Difficulty Rogue Special Mode None Game No. 296 Rogue 296 Adventurer 0 Explorer 0 Win Type - Total 0 Types 0/0/0/0/0/0/0 Lore% 58 Gallery% 73 Achievement% 44 Wizard Run 0 Options --------- ASCII 1 Keyboard 1 Movement Vi Keybinds 0 Fullscreen 1 Font 14/Cog Map View 72x52 Tactical HUD 1 Map Filters NONE Filters LOW_CONTRAST(13,24,33) Steam 0 RUN: 7378b361-c75d-4b80-bec2-bfca2034e9bc